[Event "Early-Titled-Tuesday-Blitz-May-28-2024"]
[Site "Chess.com"]
[Date "2024.05.28"]
[Round "7"]
[White "Stanbad1"]
[Black "BashiqChess"]
[Result "1-0"]
[WhiteElo "2634"]
[BlackElo "2431"]
[TimeControl "180+1"]
[EndTime "9:17:38 PDT"]
[Termination "Stanbad1 won by resignation"]

1. d4 {[%clk 0:03:00.9]} 1... d5 {[%clk 0:02:53.6]} 2. Nc3 {[%clk 0:03:00.8]}
2... e6 {[%clk 0:02:52.6]} 3. Bf4 {[%clk 0:02:59.5]} 3... Bb4 {[%clk 0:02:52.3]}
4. e3 {[%clk 0:02:49.2]} 4... Nf6 {[%clk 0:02:44.6]} 5. Bd3 {[%clk 0:02:47.5]}
5... c5 {[%clk 0:02:33.8]} 6. dxc5 {[%clk 0:02:45.3]} 6... Nbd7 {[%clk
0:02:28.9]} 7. Ne2 {[%clk 0:02:44.6]} 7... Nxc5 {[%clk 0:02:28.4]} 8. O-O {[%clk
0:02:42.9]} 8... O-O {[%clk 0:02:23.4]} 9. a3 {[%clk 0:02:42]} 9... Bxc3 {[%clk
0:02:23.1]} 10. Nxc3 {[%clk 0:02:41.7]} 10... a6 {[%clk 0:02:22.5]} 11. Re1
{[%clk 0:02:41.8]} 11... b5 {[%clk 0:02:20.5]} 12. e4 {[%clk 0:02:39.7]} 12...
dxe4 {[%clk 0:01:47.3]} 13. Bxe4 {[%clk 0:02:38.2]} 13... Ncxe4 {[%clk
0:01:43.5]} 14. Nxe4 {[%clk 0:02:37.6]} 14... Nxe4 {[%clk 0:01:43.7]} 15. Rxe4
{[%clk 0:02:36.8]} 15... Bb7 {[%clk 0:01:42]} 16. Rd4 {[%clk 0:02:33.6]} 16...
Bd5 {[%clk 0:01:42.4]} 17. f3 {[%clk 0:02:29.4]} 17... Qf6 {[%clk 0:01:35.5]}
18. Qd2 {[%clk 0:02:27.4]} 18... Rac8 {[%clk 0:01:29.1]} 19. c3 {[%clk 0:02:26]}
19... Qg6 {[%clk 0:01:19.5]} 20. Bg3 {[%clk 0:02:16.7]} 20... h5 {[%clk
0:01:09.9]} 21. Re1 {[%clk 0:02:15.6]} 21... Rc6 {[%clk 0:01:02]} 22. Re5 {[%clk
0:02:13.7]} 22... Rfc8 {[%clk 0:00:54.6]} 23. Rh4 {[%clk 0:02:04.2]} 23... Rc4
{[%clk 0:00:26]} 24. Rhxh5 {[%clk 0:01:42.8]} 24... Rd8 {[%clk 0:00:09]} 25.
Reg5 {[%clk 0:01:38]} 25... Qb1+ {[%clk 0:00:08.8]} 26. Kf2 {[%clk 0:01:38]}
26... f6 {[%clk 0:00:08.4]} 27. Rxd5 {[%clk 0:01:29.1]} 27... exd5 {[%clk
0:00:08.2]} 28. Rxd5 {[%clk 0:01:29.8]} 28... Rxd5 {[%clk 0:00:07.8]} 29. Qxd5+
{[%clk 0:01:30.7]} 29... Kh7 {[%clk 0:00:08.2]} 30. Qd2 {[%clk 0:01:30.4]} 30...
a5 {[%clk 0:00:07]} 31. Bd6 {[%clk 0:01:30]} 31... a4 {[%clk 0:00:06.5]} 32. Bb4
{[%clk 0:01:29.4]} 32... Qf5 {[%clk 0:00:06.2]} 33. g3 {[%clk 0:01:28.5]} 33...
Qh3 {[%clk 0:00:05.9]} 34. Kg1 {[%clk 0:01:27.9]} 34... Rc8 {[%clk 0:00:06.2]}
35. Qd3+ {[%clk 0:01:26.9]} 35... Kh8 {[%clk 0:00:05.9]} 36. Qxb5 {[%clk
0:01:24.9]} 36... Rd8 {[%clk 0:00:03.5]} 37. Qe2 {[%clk 0:01:25.5]} 37... Kh7
{[%clk 0:00:02.1]} 38. c4 {[%clk 0:01:25.2]} 38... Qf5 {[%clk 0:00:01]} 39. Kg2
{[%clk 0:01:24.5]} 39... Rd7 {[%clk 0:00:01.1]} 40. c5 {[%clk 0:01:24.1]} 40...
Rc7 {[%clk 0:00:01]} 41. Qc4 {[%clk 0:01:23.3]} 41... Rd7 {[%clk 0:00:01]} 42.
c6 {[%clk 0:01:22.7]} 42... Rd1 {[%clk 0:00:01]} 43. c7 {[%clk 0:01:21]} 43...
Qc8 {[%clk 0:00:01.2]} 44. Qc2+ {[%clk 0:01:19.9]} 44... g6 {[%clk 0:00:01.5]}
45. Qxd1 {[%clk 0:01:20]} 45... Kh6 {[%clk 0:00:01.8]} 46. Qd8 {[%clk 0:01:19]}
46... Qf5 {[%clk 0:00:01.4]} 1-0

[Event "Early-Titled-Tuesday-Blitz-May-28-2024"]
[Site "Chess.com"]
[Date "2024.05.28"]
[Round "7"]
[White "RespectfulDaveOnYouTube"]
[Black "betta2004"]
[Result "0-1"]
[WhiteElo "2490"]
[BlackElo "2596"]
[TimeControl "180+1"]
[EndTime "9:17:38 PDT"]
[Termination "betta2004 won by checkmate"]

1. e4 {[%clk 0:03:00.9]} 1... c6 {[%clk 0:02:25.9]} 2. d4 {[%clk 0:02:59.9]}
2... d5 {[%clk 0:02:25.5]} 3. e5 {[%clk 0:02:57.7]} 3... Bf5 {[%clk 0:02:23.9]}
4. h4 {[%clk 0:02:52.8]} 4... h5 {[%clk 0:02:13.1]} 5. Bd3 {[%clk 0:02:52.1]}
5... Bxd3 {[%clk 0:02:02.2]} 6. Qxd3 {[%clk 0:02:52]} 6... e6 {[%clk 0:02:03]}
7. Nf3 {[%clk 0:02:45.6]} 7... c5 {[%clk 0:01:51.3]} 8. dxc5 {[%clk 0:02:35.8]}
8... Nd7 {[%clk 0:01:49.3]} 9. b4 {[%clk 0:02:33]} 9... Qc7 {[%clk 0:01:44.7]}
10. Bb2 {[%clk 0:02:27]} 10... a5 {[%clk 0:01:40.1]} 11. a3 {[%clk 0:02:06.3]}
11... axb4 {[%clk 0:01:40]} 12. axb4 {[%clk 0:02:05.8]} 12... Rxa1 {[%clk
0:01:40.9]} 13. Bxa1 {[%clk 0:02:06.2]} 13... b6 {[%clk 0:01:41.8]} 14. O-O
{[%clk 0:01:30.3]} 14... bxc5 {[%clk 0:01:40.9]} 15. Nbd2 {[%clk 0:01:26.9]}
15... cxb4 {[%clk 0:01:29.9]} 16. Bd4 {[%clk 0:01:16]} 16... Nh6 {[%clk
0:01:29.5]} 17. Ra1 {[%clk 0:01:15.3]} 17... Be7 {[%clk 0:01:20.8]} 18. Qb5
{[%clk 0:00:24.9]} 18... O-O {[%clk 0:00:51.3]} 19. Ra7 {[%clk 0:00:23.3]} 19...
Qxc2 {[%clk 0:00:51.6]} 20. Rxd7 {[%clk 0:00:10.7]} 20... Nf5 {[%clk 0:00:32.6]}
21. Rxe7 {[%clk 0:00:03.3]} 21... Nxe7 {[%clk 0:00:32.2]} 22. Qxb4 {[%clk
0:00:03.8]} 22... Nf5 {[%clk 0:00:31]} 23. Be3 {[%clk 0:00:01.8]} 23... Qd1+
{[%clk 0:00:26.6]} 24. Kh2 {[%clk 0:00:01.7]} 24... Rc8 {[%clk 0:00:26.1]} 25.
Qf4 {[%clk 0:00:01.8]} 25... Rc1 {[%clk 0:00:25.5]} 26. g3 {[%clk 0:00:00.9]}
26... Qh1# {[%clk 0:00:25.1]} 0-1

[Event "Early-Titled-Tuesday-Blitz-May-28-2024"]
[Site "Chess.com"]
[Date "2024.05.28"]
[Round "7"]
[White "Jeppesen08"]
[Black "ATM622"]
[Result "0-1"]
[WhiteElo "2473"]
[BlackElo "2578"]
[TimeControl "180+1"]
[EndTime "9:17:38 PDT"]
[Termination "ATM622 won on time"]

1. b3 {[%clk 0:02:59.8]} 1... d5 {[%clk 0:02:59.8]} 2. Bb2 {[%clk 0:02:59.8]}
2... c5 {[%clk 0:03:00.1]} 3. f4 {[%clk 0:02:55.1]} 3... Nc6 {[%clk 0:02:59.9]}
4. Nf3 {[%clk 0:02:55.1]} 4... Nf6 {[%clk 0:02:59.2]} 5. e3 {[%clk 0:02:55.6]}
5... Bg4 {[%clk 0:02:56.3]} 6. Be2 {[%clk 0:02:55.4]} 6... e6 {[%clk 0:02:55.1]}
7. O-O {[%clk 0:02:55.4]} 7... Be7 {[%clk 0:02:55]} 8. h3 {[%clk 0:02:56]} 8...
Bxf3 {[%clk 0:02:54.5]} 9. Bxf3 {[%clk 0:02:56]} 9... O-O {[%clk 0:02:53.4]} 10.
d3 {[%clk 0:02:56.5]} 10... Qc7 {[%clk 0:02:48.4]} 11. Nd2 {[%clk 0:02:55.4]}
11... e5 {[%clk 0:02:46.4]} 12. f5 {[%clk 0:02:31.5]} 12... Rad8 {[%clk
0:02:41.9]} 13. e4 {[%clk 0:02:30.7]} 13... dxe4 {[%clk 0:02:40.5]} 14. Nxe4
{[%clk 0:02:31.6]} 14... Nd4 {[%clk 0:02:31.3]} 15. Nxf6+ {[%clk 0:02:24.6]}
15... Bxf6 {[%clk 0:02:32.2]} 16. Be4 {[%clk 0:02:23.4]} 16... Rfe8 {[%clk
0:02:30.3]} 17. Kh1 {[%clk 0:02:20.5]} 17... b5 {[%clk 0:02:28.1]} 18. Qh5
{[%clk 0:02:11.8]} 18... Nxc2 {[%clk 0:02:25.1]} 19. Rac1 {[%clk 0:02:03]} 19...
Ne3 {[%clk 0:02:21.7]} 20. Rf3 {[%clk 0:01:53.4]} 20... Nd5 {[%clk 0:02:20.8]}
21. g4 {[%clk 0:01:42.1]} 21... h6 {[%clk 0:02:18.4]} 22. h4 {[%clk 0:01:31.4]}
22... Qe7 {[%clk 0:02:11.5]} 23. g5 {[%clk 0:01:28.7]} 23... hxg5 {[%clk
0:02:11.1]} 24. hxg5 {[%clk 0:01:15.5]} 24... Bxg5 {[%clk 0:02:06.7]} 25. f6
{[%clk 0:00:58.2]} 25... Nxf6 {[%clk 0:02:05.4]} 26. Qxg5 {[%clk 0:00:41.6]}
26... Nxe4 {[%clk 0:02:05.3]} 27. Qxe7 {[%clk 0:00:38.2]} 27... Rxe7 {[%clk
0:02:06.2]} 28. dxe4 {[%clk 0:00:38.7]} 28... Rd2 {[%clk 0:02:04.5]} 29. Bc3
{[%clk 0:00:23.6]} 29... Rxa2 {[%clk 0:02:04.2]} 30. Rd3 {[%clk 0:00:24.2]}
30... Re6 {[%clk 0:01:59.5]} 31. Rd2 {[%clk 0:00:19.1]} 31... Rxd2 {[%clk
0:01:56.5]} 32. Bxd2 {[%clk 0:00:20]} 32... Rc6 {[%clk 0:01:57]} 33. Be3 {[%clk
0:00:19.5]} 33... c4 {[%clk 0:01:55.3]} 34. bxc4 {[%clk 0:00:20.4]} 34... Rxc4
{[%clk 0:01:53.6]} 35. Rxc4 {[%clk 0:00:18.5]} 35... bxc4 {[%clk 0:01:54.5]} 36.
Bxa7 {[%clk 0:00:17.6]} 36... Kf8 {[%clk 0:01:53.8]} 37. Kg2 {[%clk 0:00:17.5]}
37... Ke7 {[%clk 0:01:51.1]} 38. Kf3 {[%clk 0:00:17.4]} 38... Kd6 {[%clk
0:01:49.5]} 39. Be3 {[%clk 0:00:16.2]} 39... Kc6 {[%clk 0:01:48]} 40. Kg4 {[%clk
0:00:12.8]} 40... Kb5 {[%clk 0:01:45.2]} 41. Kf5 {[%clk 0:00:12.7]} 41... Kb4
{[%clk 0:01:43.5]} 42. Kxe5 {[%clk 0:00:10.9]} 42... Kc3 {[%clk 0:01:42.2]} 43.
Bf4 {[%clk 0:00:04.1]} 43... Kd3 {[%clk 0:01:41.1]} 44. Kd5 {[%clk 0:00:03.4]}
44... c3 {[%clk 0:01:35.8]} 45. e5 {[%clk 0:00:03.9]} 45... c2 {[%clk 0:01:34]}
46. Kd6 {[%clk 0:00:03.9]} 46... Ke4 {[%clk 0:01:32.8]} 47. Bc1 {[%clk
0:00:03.4]} 47... Kf5 {[%clk 0:01:31.5]} 48. Bb2 {[%clk 0:00:03.3]} 48... g5
{[%clk 0:01:29.7]} 49. Ke7 {[%clk 0:00:01.8]} 49... Kg6 {[%clk 0:01:28.3]} 50.
Bc1 {[%clk 0:00:01]} 50... g4 {[%clk 0:01:27.9]} 51. Kd6 {[%clk 0:00:01.9]}
51... g3 {[%clk 0:01:27.8]} 0-1

[Event "Early-Titled-Tuesday-Blitz-May-28-2024"]
[Site "Chess.com"]
[Date "2024.05.28"]
[Round "7"]
[White "FlemingA"]
[Black "HouseOfDurin"]
[Result "0-1"]
[WhiteElo "2462"]
[BlackElo "2280"]
[TimeControl "180+1"]
[EndTime "9:17:40 PDT"]
[Termination "HouseOfDurin won by checkmate"]

1. f4 {[%clk 0:03:00.9]} 1... d5 {[%clk 0:02:59]} 2. Nf3 {[%clk 0:03:01.2]} 2...
c5 {[%clk 0:02:59.2]} 3. g3 {[%clk 0:03:01.6]} 3... Nc6 {[%clk 0:02:59]} 4. Bg2
{[%clk 0:03:02.2]} 4... g6 {[%clk 0:02:59]} 5. O-O {[%clk 0:03:02.1]} 5... Bg7
{[%clk 0:02:59.6]} 6. d3 {[%clk 0:03:01.6]} 6... d4 {[%clk 0:02:58.7]} 7. e4
{[%clk 0:03:00.7]} 7... dxe3 {[%clk 0:02:59.5]} 8. c3 {[%clk 0:02:56]} 8... Nf6
{[%clk 0:02:57.5]} 9. Bxe3 {[%clk 0:02:55.1]} 9... Nd7 {[%clk 0:02:47.9]} 10.
Nbd2 {[%clk 0:02:43.3]} 10... O-O {[%clk 0:02:46.9]} 11. f5 {[%clk 0:02:39.2]}
11... Nce5 {[%clk 0:02:39]} 12. Nc4 {[%clk 0:02:33.5]} 12... Nxc4 {[%clk
0:02:35.4]} 13. dxc4 {[%clk 0:02:34.4]} 13... Rb8 {[%clk 0:02:27.9]} 14. Bf4
{[%clk 0:02:32.5]} 14... Ra8 {[%clk 0:02:24.2]} 15. Qd5 {[%clk 0:02:25.4]} 15...
Nb6 {[%clk 0:02:10.7]} 16. Qxd8 {[%clk 0:02:23.6]} 16... Rxd8 {[%clk 0:02:10]}
17. fxg6 {[%clk 0:02:23.4]} 17... hxg6 {[%clk 0:02:08.3]} 18. Ng5 {[%clk
0:02:01.1]} 18... Nxc4 {[%clk 0:02:01.7]} 19. Nxf7 {[%clk 0:01:34]} 19... Kxf7
{[%clk 0:01:49.9]} 20. Bc7+ {[%clk 0:01:32.9]} 20... Ke8 {[%clk 0:01:50.2]} 21.
Bxd8 {[%clk 0:01:29.1]} 21... Kxd8 {[%clk 0:01:51.1]} 22. Rf7 {[%clk 0:01:22.3]}
22... Bf6 {[%clk 0:01:45.8]} 23. Rd1+ {[%clk 0:01:01.1]} 23... Kc7 {[%clk
0:01:45.7]} 24. Rf1 {[%clk 0:00:46.6]} 24... Bd7 {[%clk 0:01:43.1]} 25. Rf2
{[%clk 0:00:18.7]} 25... Rh8 {[%clk 0:01:39.1]} 26. h4 {[%clk 0:00:05.5]} 26...
Nd6 {[%clk 0:01:37.7]} 27. R7xf6 {[%clk 0:00:02.4]} 27... exf6 {[%clk
0:01:38.6]} 28. Rxf6 {[%clk 0:00:03.1]} 28... Bf5 {[%clk 0:01:34.4]} 29. Bd5
{[%clk 0:00:02.5]} 29... Kd7 {[%clk 0:01:28.5]} 30. c4 {[%clk 0:00:02.7]} 30...
Ke7 {[%clk 0:01:28.1]} 31. Rxd6 {[%clk 0:00:01.2]} 31... Kxd6 {[%clk 0:01:28.1]}
32. Bxb7 {[%clk 0:00:02.1]} 32... Rb8 {[%clk 0:01:25.7]} 33. Bd5 {[%clk
0:00:03]} 33... Rxb2 {[%clk 0:01:25.5]} 34. Bf3 {[%clk 0:00:01.6]} 34... Rxa2
{[%clk 0:01:23.8]} 35. Kf1 {[%clk 0:00:01.9]} 35... Bd3+ {[%clk 0:01:23.6]} 36.
Kg1 {[%clk 0:00:02.2]} 36... Bxc4 {[%clk 0:01:23.8]} 37. h5 {[%clk 0:00:03]}
37... gxh5 {[%clk 0:01:23.4]} 38. Bxh5 {[%clk 0:00:03.9]} 38... Be6 {[%clk
0:01:23.6]} 39. Bf3 {[%clk 0:00:04.1]} 39... Ra3 {[%clk 0:01:22.8]} 40. Kf2
{[%clk 0:00:05]} 40... Rxf3+ {[%clk 0:01:21.9]} 41. Kxf3 {[%clk 0:00:05.9]}
41... a5 {[%clk 0:01:21.4]} 42. Ke3 {[%clk 0:00:06.5]} 42... Kd5 {[%clk
0:01:21.1]} 43. Kd3 {[%clk 0:00:07.2]} 43... c4+ {[%clk 0:01:21.5]} 44. Kc3
{[%clk 0:00:07.7]} 44... Kc5 {[%clk 0:01:21.8]} 45. Kc2 {[%clk 0:00:04.7]} 45...
Bg4 {[%clk 0:01:22.7]} 46. Kc3 {[%clk 0:00:05.6]} 46... a4 {[%clk 0:01:22.3]}
47. Kb2 {[%clk 0:00:06]} 47... Kb4 {[%clk 0:01:23]} 48. Ka2 {[%clk 0:00:06.6]}
48... a3 {[%clk 0:01:22.2]} 49. Kb1 {[%clk 0:00:06.6]} 49... Kb3 {[%clk
0:01:21.9]} 50. Ka1 {[%clk 0:00:07]} 50... c3 {[%clk 0:01:21.9]} 51. Kb1 {[%clk
0:00:07.6]} 51... c2+ {[%clk 0:01:21.7]} 52. Ka1 {[%clk 0:00:03.8]} 52... c1=Q#
{[%clk 0:01:21.2]} 0-1

[Event "Early-Titled-Tuesday-Blitz-May-28-2024"]
[Site "Chess.com"]
[Date "2024.05.28"]
[Round "7"]
[White "FGHSMN"]
[Black "DanielNaroditsky"]
[Result "1-0"]
[WhiteElo "2910"]
[BlackElo "3058"]
[TimeControl "180+1"]
[EndTime "9:17:43 PDT"]
[Termination "FGHSMN won by resignation"]

1. e4 {[%clk 0:03:00.9]} 1... c5 {[%clk 0:02:59.5]} 2. Nf3 {[%clk 0:03:00.1]}
2... Nf6 {[%clk 0:02:56.5]} 3. e5 {[%clk 0:02:59.5]} 3... Nd5 {[%clk 0:02:57]}
4. Nc3 {[%clk 0:02:59.9]} 4... e6 {[%clk 0:02:57.6]} 5. Ne4 {[%clk 0:02:57]}
5... f5 {[%clk 0:02:57.8]} 6. exf6 {[%clk 0:02:53.6]} 6... Nxf6 {[%clk
0:02:57.7]} 7. Nxf6+ {[%clk 0:02:49.1]} 7... Qxf6 {[%clk 0:02:58.6]} 8. d4
{[%clk 0:02:47.9]} 8... cxd4 {[%clk 0:02:59.5]} 9. Bg5 {[%clk 0:02:47.3]} 9...
Qf5 {[%clk 0:02:58.4]} 10. Bd3 {[%clk 0:02:46.9]} 10... Qa5+ {[%clk 0:02:57.5]}
11. c3 {[%clk 0:02:41.7]} 11... dxc3 {[%clk 0:02:53.7]} 12. O-O {[%clk
0:02:41.5]} 12... Nc6 {[%clk 0:02:53.7]} 13. Qc2 {[%clk 0:02:32.3]} 13... Be7
{[%clk 0:02:47.3]} 14. Bxe7 {[%clk 0:02:32.4]} 14... Kxe7 {[%clk 0:02:46.2]} 15.
bxc3 {[%clk 0:02:29]} 15... g6 {[%clk 0:02:29.5]} 16. Rfe1 {[%clk 0:02:28.2]}
16... b6 {[%clk 0:02:28.3]} 17. Rad1 {[%clk 0:02:26.5]} 17... Bb7 {[%clk
0:02:27.5]} 18. Qd2 {[%clk 0:02:21.9]} 18... Rhf8 {[%clk 0:02:18.8]} 19. Bxg6
{[%clk 0:02:17.4]} 19... Rad8 {[%clk 0:02:13.9]} 20. Bxh7 {[%clk 0:02:05.7]}
20... Qh5 {[%clk 0:02:11.2]} 21. Be4 {[%clk 0:02:04.4]} 21... Rg8 {[%clk
0:01:52]} 22. Qd6+ {[%clk 0:02:02.9]} 22... Kf6 {[%clk 0:01:47]} 23. Qc7 {[%clk
0:01:54.1]} 23... d5 {[%clk 0:01:24.1]} 24. Qxb7 {[%clk 0:01:54.1]} 24... dxe4
{[%clk 0:01:24.1]} 25. Rxd8 {[%clk 0:01:54.7]} 25... Rxg2+ {[%clk 0:01:09]} 26.
Kxg2 {[%clk 0:01:44.5]} 26... Qxf3+ {[%clk 0:01:04.4]} 27. Kf1 {[%clk
0:01:44.5]} 27... Qh3+ {[%clk 0:00:59.4]} 28. Ke2 {[%clk 0:01:37.1]} 28... Qf3+
{[%clk 0:00:59.7]} 29. Kd2 {[%clk 0:01:37.1]} 29... Qxf2+ {[%clk 0:01:00.1]} 30.
Kd1 {[%clk 0:01:25.4]} 30... Nxd8 {[%clk 0:00:55.7]} 31. Qxe4 {[%clk 0:01:24.3]}
31... Qxh2 {[%clk 0:00:56.1]} 32. Rh1 {[%clk 0:01:17.7]} 32... Qd6+ {[%clk
0:00:42.1]} 33. Kc2 {[%clk 0:01:17.1]} 33... Qd5 {[%clk 0:00:27.2]} 34. Rf1+
{[%clk 0:01:03]} 34... Ke7 {[%clk 0:00:27.6]} 35. Qb4+ {[%clk 0:01:03]} 35...
Qc5 {[%clk 0:00:17.6]} 36. Qh4+ {[%clk 0:01:01.9]} 36... Ke8 {[%clk 0:00:15]}
37. Qh8+ {[%clk 0:01:02.1]} 37... Kd7 {[%clk 0:00:13.6]} 38. Rd1+ {[%clk
0:01:01.7]} 38... Kc6 {[%clk 0:00:13.9]} 39. Qxd8 {[%clk 0:01:01.9]} 39... Qf5+
{[%clk 0:00:14.7]} 40. Kb2 {[%clk 0:00:59.3]} 40... Qf2+ {[%clk 0:00:13.7]} 41.
Ka1 {[%clk 0:00:59.6]} 41... Qg3 {[%clk 0:00:12.5]} 42. Qc8+ {[%clk 0:00:58.4]}
42... Kb5 {[%clk 0:00:12.7]} 43. Rb1+ {[%clk 0:00:58.5]} 43... Ka5 {[%clk
0:00:12.5]} 44. Qc4 {[%clk 0:00:58.6]} 44... Qe5 {[%clk 0:00:09.9]} 45. a4
{[%clk 0:00:57.2]} 1-0

[Event "Early-Titled-Tuesday-Blitz-May-28-2024"]
[Site "Chess.com"]
[Date "2024.05.28"]
[Round "7"]
[White "Matols"]
[Black "sergeikim"]
[Result "0-1"]
[WhiteElo "2388"]
[BlackElo "2619"]
[TimeControl "180+1"]
[EndTime "9:17:45 PDT"]
[Termination "sergeikim won on time"]

1. d4 {[%clk 0:03:00.9]} 1... Nf6 {[%clk 0:02:59.6]} 2. c4 {[%clk 0:03:00.9]}
2... g6 {[%clk 0:03:00.2]} 3. g3 {[%clk 0:03:01.2]} 3... d6 {[%clk 0:03:00.6]}
4. Bg2 {[%clk 0:03:00.9]} 4... Bg7 {[%clk 0:03:00.9]} 5. Nc3 {[%clk 0:03:01.3]}
5... O-O {[%clk 0:03:01.1]} 6. Nf3 {[%clk 0:03:01.8]} 6... Nbd7 {[%clk
0:03:01.1]} 7. O-O {[%clk 0:03:01.9]} 7... e5 {[%clk 0:03:01.3]} 8. e4 {[%clk
0:03:01.2]} 8... exd4 {[%clk 0:03:01.3]} 9. Nxd4 {[%clk 0:03:02.1]} 9... Re8
{[%clk 0:03:01.3]} 10. Re1 {[%clk 0:03:01.6]} 10... Nc5 {[%clk 0:03:01.3]} 11.
h3 {[%clk 0:02:57.4]} 11... c6 {[%clk 0:03:01.6]} 12. Bf4 {[%clk 0:02:49.8]}
12... Nh5 {[%clk 0:03:00.9]} 13. Be3 {[%clk 0:02:47.6]} 13... a5 {[%clk
0:03:01]} 14. Rb1 {[%clk 0:02:41.5]} 14... a4 {[%clk 0:03:00.9]} 15. Qc2 {[%clk
0:02:37.7]} 15... Qa5 {[%clk 0:02:59.8]} 16. Rbd1 {[%clk 0:02:33.8]} 16... Qb4
{[%clk 0:02:53.2]} 17. Bf1 {[%clk 0:02:26.7]} 17... Nf6 {[%clk 0:02:48.5]} 18.
f3 {[%clk 0:02:16.5]} 18... Nfd7 {[%clk 0:02:45.7]} 19. Qc1 {[%clk 0:02:01.8]}
19... Ne5 {[%clk 0:02:36.8]} 20. a3 {[%clk 0:01:43.6]} 20... Qa5 {[%clk
0:02:36.4]} 21. Kg2 {[%clk 0:01:39.5]} 21... Qc7 {[%clk 0:02:17.8]} 22. Ndb5
{[%clk 0:01:17.2]} 22... cxb5 {[%clk 0:02:15.6]} 23. Nxb5 {[%clk 0:01:18.1]}
23... Qa5 {[%clk 0:01:58.7]} 24. Nxd6 {[%clk 0:01:14.4]} 24... Rf8 {[%clk
0:01:57.7]} 25. Rd5 {[%clk 0:01:11.2]} 25... b6 {[%clk 0:01:57.4]} 26. f4 {[%clk
0:00:59.6]} 26... Nc6 {[%clk 0:01:48.7]} 27. Nxc8 {[%clk 0:00:45.5]} 27... Raxc8
{[%clk 0:01:42.7]} 28. e5 {[%clk 0:00:45.5]} 28... Qa8 {[%clk 0:01:38.3]} 29.
Kh2 {[%clk 0:00:44.5]} 29... Ne7 {[%clk 0:01:38]} 30. Rd6 {[%clk 0:00:39.9]}
30... Nf5 {[%clk 0:01:17.5]} 31. Rxb6 {[%clk 0:00:37.3]} 31... Qf3 {[%clk
0:01:15.3]} 32. Bxc5 {[%clk 0:00:19.7]} 32... Qxg3+ {[%clk 0:01:13]} 33. Kh1
{[%clk 0:00:20.3]} 33... Rxc5 {[%clk 0:01:11.9]} 34. Bg2 {[%clk 0:00:18]} 34...
Rfc8 {[%clk 0:01:03.5]} 35. Rb4 {[%clk 0:00:15.1]} 35... Bh6 {[%clk 0:00:57.5]}
36. e6 {[%clk 0:00:12.8]} 36... Bxf4 {[%clk 0:00:53.9]} 37. exf7+ {[%clk
0:00:11.7]} 37... Kxf7 {[%clk 0:00:53.9]} 38. Rb7+ {[%clk 0:00:12.3]} 38... Kg8
{[%clk 0:00:53.1]} 0-1

[Event "Early-Titled-Tuesday-Blitz-May-28-2024"]
[Site "Chess.com"]
[Date "2024.05.28"]
[Round "7"]
[White "TrahtarBelarus"]
[Black "chess_sharparchitect"]
[Result "1-0"]
[WhiteElo "2772"]
[BlackElo "2372"]
[TimeControl "180+1"]
[EndTime "9:17:46 PDT"]
[Termination "TrahtarBelarus won on time"]

1. c4 {[%clk 0:02:59.1]} 1... e5 {[%clk 0:02:59.3]} 2. g3 {[%clk 0:02:55.1]}
2... d5 {[%clk 0:02:55.4]} 3. cxd5 {[%clk 0:02:54.3]} 3... Qxd5 {[%clk
0:02:55.5]} 4. Nf3 {[%clk 0:02:54.3]} 4... Nc6 {[%clk 0:02:40.4]} 5. Nc3 {[%clk
0:02:53.2]} 5... Qd8 {[%clk 0:02:35.9]} 6. Bg2 {[%clk 0:02:53.4]} 6... Nf6
{[%clk 0:02:34.2]} 7. O-O {[%clk 0:02:53.9]} 7... Bd6 {[%clk 0:02:26.7]} 8. b3
{[%clk 0:02:39.4]} 8... O-O {[%clk 0:02:24.4]} 9. Bb2 {[%clk 0:02:39.9]} 9...
Bg4 {[%clk 0:02:15.8]} 10. Rc1 {[%clk 0:02:39]} 10... Re8 {[%clk 0:02:08.4]} 11.
d3 {[%clk 0:02:39.1]} 11... a6 {[%clk 0:01:59.2]} 12. h3 {[%clk 0:02:39.1]}
12... Bh5 {[%clk 0:01:54.5]} 13. g4 {[%clk 0:02:34.7]} 13... Bg6 {[%clk
0:01:54.3]} 14. Nh4 {[%clk 0:02:35]} 14... Qd7 {[%clk 0:01:33.2]} 15. Nxg6
{[%clk 0:02:28.6]} 15... hxg6 {[%clk 0:01:32.4]} 16. Ne4 {[%clk 0:02:21.7]}
16... Nxe4 {[%clk 0:01:24.3]} 17. Bxe4 {[%clk 0:02:22.6]} 17... Nd8 {[%clk
0:01:11.6]} 18. e3 {[%clk 0:02:15.8]} 18... c6 {[%clk 0:01:10.3]} 19. d4 {[%clk
0:01:33.3]} 19... exd4 {[%clk 0:01:02.8]} 20. Qxd4 {[%clk 0:01:34.2]} 20... Ne6
{[%clk 0:01:02]} 21. Qc3 {[%clk 0:01:33]} 21... Rad8 {[%clk 0:00:45.2]} 22. Rfd1
{[%clk 0:01:31.5]} 22... Qe7 {[%clk 0:00:43.7]} 23. Bg2 {[%clk 0:01:31.5]} 23...
f6 {[%clk 0:00:38.3]} 24. Qc2 {[%clk 0:01:29.1]} 24... Ng5 {[%clk 0:00:33.4]}
25. Qxg6 {[%clk 0:01:26.1]} 25... Bc7 {[%clk 0:00:27.8]} 26. h4 {[%clk
0:01:21.6]} 26... Ne6 {[%clk 0:00:20.5]} 27. Bf1 {[%clk 0:01:14.3]} 27... b5
{[%clk 0:00:18.4]} 28. Bg2 {[%clk 0:01:13.6]} 28... Rxd1+ {[%clk 0:00:16.6]} 29.
Rxd1 {[%clk 0:01:13.5]} 29... c5 {[%clk 0:00:16.9]} 30. Bd5 {[%clk 0:01:12.6]}
30... Rd8 {[%clk 0:00:16.9]} 31. Qe4 {[%clk 0:01:12.3]} 31... Kf7 {[%clk
0:00:15.8]} 32. f4 {[%clk 0:01:10.8]} 32... Qd6 {[%clk 0:00:09.8]} 33. Kg2
{[%clk 0:01:03.1]} 33... g6 {[%clk 0:00:09.4]} 34. h5 {[%clk 0:00:48.9]} 34...
f5 {[%clk 0:00:07]} 35. hxg6+ {[%clk 0:00:48.5]} 35... Ke7 {[%clk 0:00:06.5]}
36. Qxf5 {[%clk 0:00:44.8]} 1-0